[Event "GER-ch Youth-U18 2022"]
[Site "Willingen"]
[Date "2022.06.10"]
[Round "8.1"]
[White "Weishaeutel, Moritz"]
[Black "Fromm, Marius"]
[Result "0-1"]
[ECO "B97"]
[WhiteElo "2406"]
[BlackElo "2317"]
[Annotator "TA"]
[PlyCount "78"]
[EventDate "2022.06.05"]
[EventType "swiss"]
[EventRounds "9"]
[EventCountry "GER"]
[SourceTitle "playchess.com"]
[Source "ChessBase"]
[SourceQuality "1"]
[TimeControl "40/4500+30:900+30"]

{[%evp 14,78,12,0,0,0,0,0,0,0,0,0,0,0,0,0,0,0,0,-37,-44,0,364,318,314,310,998,1009,975,995,920,883,689,206,171,63,55,59,57,44,43,29,385,393,558,416,411,398,382,-131,-147,-765,-755,-1242,-887,-1237,-1216,-1106,-1004,-1403,-1407,-1387,-1291,-1313,-1203,-29983,-6237]} 1. e4 {[%emt 0:00:00] Gofshtein,L} c5 {[%emt 0:00:00]} 2. Nf3 {[%emt 0:00:00]} d6 {[%emt 0:00:00]} 3. d4 {[%emt 0:00:00]} cxd4 {[%emt 0:00:00]} 4. Nxd4 {[%emt 0:00:00]} Nf6 {[%emt 0:00:00]} 5. Nc3 {[%emt 0:00:00]} a6 {[%emt 0:00:00]} 6. Bg5 {[%emt 0:00:00]} e6 {[%emt 0:00:00]} 7. f4 {[%emt 0:00:00]} Qb6 {[%emt 0:00:00]} 8. Qd3 {[%emt 0:00:00]} Qxb2 {[%emt 0:00:00] B97: Sicilian Najdorf: Poisoned Pawn.} 9. Rb1 {[%emt 0:00:00]} Qa3 {[%emt 0:00:00]} 10. f5 $1 {[%emt 0:00:00]} Be7 {[%emt 0:00:00] The position is equal. 10...Qa5 is more advanced technology.} 11. fxe6 {[%emt 0:00:00]} fxe6 {[%emt 0:00:00]} 12. Be2 {[%emt 0:00:00]} Qa5 {[%emt 0:00:00]} 13. Bd2 $36 {[%emt 0:00:00][%cal Oc3d5][%mdl 2048] aiming for Nd5! White has some pressure.} Qc7 {[%emt 0:00:00]} 14. g4 {[%emt 0:00:00] Black must now prevent g5.} h6 {[%emt 0:00:00]} 15. e5 {[%emt 0:09:02]} dxe5 {[%emt 0:00:00]} 16. Qg6+ {[%emt 0:00:05]} Kf8 {[%emt 0:00:00]} 17. Nf3 {[%emt 0:00:35] [#]} Nc6 $146 {[%emt 0:18:35][%mdl 8192]} (17... Bd7 $11 {and Black has nothing to worry.} 18. g5 Be8) ({Predecessor:} 17... Bd7 18. g5 Be8 19. Qd3 hxg5 20. Nxg5 Bf7 21. Nxf7 Kxf7 22. Rg1 Bd8 23. Ne4 Nxe4 24. Qxe4 {1-0 (31) Radjabov,T (2663)-Rowson,J (2577) Mallorca 2004 CBM 104 [Gofshtein,L]}) 18. g5 $18 {[%emt 0:09:15]} hxg5 {[%emt 0:00:22]} 19. Nxg5 {[%emt 0:00:06][%csl Gg5][%cal Rg6f7]} Nd8 {[%emt 0:15:46] Prevents Qf7+.} (19... Bc5 $2 20. Rf1 Bb4 21. Nce4 Bxd2+ 22. Kxd2 Qd8+ 23. Bd3 Rxh2+ 24. Kc1 $18) (19... Bd8) 20. Rf1 {[%emt 0:01:45]} Rh6 {[%emt 0:07:26]} 21. Nh7+ {[%emt 0:02:48]} Rxh7 {[%emt 0:00:05]} 22. Qxh7 {[%emt 0:00:04] Qh8+ would kill now.} Nf7 {[%emt 0:00:11][%cal Bd8f7,Bf7d6,Bd6f5][%mdl 32] [#] Inhibits Qh8+.} 23. Qg6 $2 {[%emt 0:01:04]} (23. Rxf6 $1 {[%mdl 512]} Bxf6 24. Ne4) 23... Nd6 {[%emt 0:09:45] [#]} 24. Bd3 {[%emt 0:20:40]} ({White must play} 24. Rb3 $1 $18 {And now Ne4 would win.} Kg8 25. Na4) 24... Nf5 $1 $14 {[%emt 0:05:38]} 25. Ne4 {[%emt 0:03:58]} Nxe4 {[%emt 0:01:36]} 26. Bxe4 {[%emt 0:00:01][%cal Rf1f5]} Qc4 {[%emt 0:03:45][%csl LRa2,LRe4]} 27. Qg4 {[%emt 0:06:43][%cal Re4f5][%mdl 1024] Inhibits Bh4+. White has compensation.} b5 $2 {[%emt 0:05:46][%mdl 8192]} (27... Bh4+ $1 $11 28. Qxh4 Qxf1+ 29. Kxf1 Nxh4) 28. Rb3 $18 {[%emt 0:07:37]} Kg8 {[%emt 0:05:02]} (28... Rb8 $142 29. Bxf5 Bh4+ 30. Rf2 Qxg4 31. Bxg4+ Bxf2+ 32. Kxf2 Bb7 33. Bxe6 Ke7) 29. Rg1 {[%emt 0:02:15]} Bh4+ {[%emt 0:13:22]} 30. Kd1 {[%emt 0:00:07]} Ra7 {[%emt 0:00:08]} 31. Rc3 $2 {[%emt 0:01:04]} (31. Rh3 $18 Rd7 32. Bxf5 exf5 33. Qxh4 Qxh4 34. Rxh4) 31... Qxc3 $1 $17 {[%emt 0:00:11] Dancing on a razor blade.} 32. Bxf5 $4 {[%emt 0:02:51][%mdl 8192]} (32. Bxc3 $17 Ne3+ 33. Ke2 Nxg4 34. Rxg4) 32... exf5 $19 {[%emt 0:00:07]} 33. Qg6 {[%emt 0:02:00]} Qf3+ {[%emt 0:00:22]} 34. Kc1 {[%emt 0:00:04]} Rf7 {[%emt 0:00:39]} 35. Qd6 {[%emt 0:01:16]} Bf6 {[%emt 0:00:17]} 36. Rg3 {[%emt 0:01:40]} Qh1+ {[%emt 0:00:29]} 37. Kb2 {[%emt 0:00:04]} Qxh2 {[%emt 0:00:15]} 38. Rc3 {[%emt 0:00:11]} Bd7 {[%emt 0:00:35][%cal Ob5b4] Threatens to win with ...b4!} 39. Rc7 {[%emt 0:01:16]} e4+ {[%emt 0:00:11] Weighted Error Value: White=1.07/Black=0.72} 0-1

[Event "GER-ch Youth-U18 2022"]
[Site "Willingen"]
[Date "2022.06.10"]
[Round "8.2"]
[White "Dahl, Christoph"]
[Black "Koelle, Tobias"]
[Result "1/2-1/2"]
[ECO "B43"]
[WhiteElo "2368"]
[BlackElo "2431"]
[Annotator "TA"]
[PlyCount "70"]
[EventDate "2022.06.05"]
[EventType "swiss"]
[EventRounds "9"]
[EventCountry "GER"]
[SourceTitle "playchess.com"]
[Source "ChessBase"]
[SourceQuality "1"]
[TimeControl "40/4500+30:900+30"]

{[%evp 15,70,33,29,18,38,0,10,-2,-1,-6,-12,-10,-5,-66,0,0,14,0,3,0,0,-22,0,0,0,9,5,0,-13,-16,14,21,50,26,33,30,42,49,75,67,65,0,-5,-7,-10,-16,38,-27,-32,-28,-6,-64,0,-2,-12,0,-5]} 1. e4 {[%emt 0:00:00]} c5 {[%emt 0:00:00]} 2. Nf3 {[%emt 0:00:00]} e6 {[%emt 0:00:00]} 3. d4 {[%emt 0:00:00]} cxd4 {[%emt 0:00:00]} 4. Nxd4 {[%emt 0:00:00]} a6 {[%emt 0:00:00]} 5. Nc3 {[%emt 0:00:00]} b5 {[%emt 0:00:00]} 6. Bd3 {[%emt 0:00:00]} Bb7 {[%emt 0:00:00]} 7. O-O {[%emt 0:00:00]} Nc6 {[%emt 0:00:00]} 8. Nxc6 {[%emt 0:00:00]} Bxc6 {[%emt 0:00:00]} 9. Re1 {[%emt 0:00:00] B43: Sicilian: Kan Variation: 5 Nc3.} Ne7 $1 {[%emt 0:00:00][%mdl 4] 9...Ne7 is a critical line.} 10. Qh5 {[%emt 0:00:00]} Ng6 {[%emt 0:00:00]} 11. Nd5 {[%emt 0:00:00][%cal Bc3d5,Bd5b4,Bb4c2,Bc2d4][%mdl 32]} Bd6 {[%emt 0:00:07] [#]} 12. Bd2 $146 {[%emt 0:05:21]} ({Predecessor:} 12. Bg5 Qb8 13. Rad1 Ra7 14. Bf1 a5 15. g3 O-O 16. Nc3 Rb7 17. Bg2 Be5 18. Bc1 {0-1 (31) Mende,A-Hort,V (2560) Germany 1992}) 12... O-O {[%emt 0:15:31]} 13. Nb4 {[%emt 0:03:51]} Bb7 {[%emt 0:03:28] [#] ...a5 is the strong threat.} 14. a3 {[%emt 0:07:17]} (14. c3 $11) 14... Be5 {[%emt 0:05:19]} ({Better is} 14... Ne5 $15) 15. c3 $11 {[%emt 0:07:11]} d6 {[%emt 0:02:20]} 16. Rad1 {[%emt 0:07:09]} Qc7 {[%emt 0:04:38]} 17. Nc2 {[%emt 0:03:14]} Rad8 {[%emt 0:01:39]} 18. Nd4 {[%emt 0:06:08]} Nf4 {[%emt 0:15:08]} 19. Bxf4 {[%emt 0:01:51]} Bxf4 {[%emt 0:01:23]} 20. Nf3 {[%emt 0:07:36]} Qc5 {[%emt 0:08:59]} 21. Qg4 {[%emt 0:04:30]} ({Reject} 21. e5 g6 22. Qh4 Bxf3 23. gxf3 Bxe5 $17) 21... Bh6 {[%emt 0:03:47]} 22. Qh4 {[%emt 0:02:12]} e5 {[%emt 0:01:41]} 23. Bc2 {[%emt 0:08:23]} a5 {[%emt 0:07:01]} 24. Bb3 {[%emt 0:00:26]} Qc7 {[%emt 0:03:25] Against Qe7} 25. Qh5 {[%emt 0:05:11]} Bc8 {[%emt 0:05:55]} 26. Nh4 {[%emt 0:11:32]} b4 {[%emt 0:01:48]} 27. cxb4 {[%emt 0:00:44] White is more active.} axb4 {[%emt 0:00:01]} 28. Qf3 {[%emt 0:02:50]} (28. axb4 $14 Be6 29. Bd5) 28... bxa3 {[%emt 0:00:32]} 29. bxa3 {[%emt 0:00:03]} g6 {[%emt 0:00:59] Inhibits Nf5.} 30. Qd3 {[%emt 0:00:43]} (30. Qf6 {feels hotter.} Bg7 31. Qg5 Bb7 32. Qe3) 30... Be6 {[%emt 0:02:05]} (30... Qa7 $11) 31. Bd5 {[%emt 0:00:06]} (31. Bxe6 $1 $14 fxe6 32. Nf3) 31... Bxd5 {[%emt 0:00:18]} 32. Qxd5 {[%emt 0:00:10]} Ra8 {[%emt 0:00:07]} 33. Rd3 {[%emt 0:01:53]} (33. Qxd6 $11 Qxd6 34. Rxd6) 33... Ra5 {[%emt 0:00:17]} (33... Rfd8 $15) 34. Qxd6 {[%emt 0:00:44]} Qxd6 {[%emt 0:00:19]} 35. Rxd6 {[%emt 0:00:03]} Rxa3 {[%emt 0:00:14] Weighted Error Value: White=0.21 (precise) /Black=0.17 (very precise)} 1/2-1/2

[Event "GER-ch Youth-U18 2022"]
[Site "Willingen"]
[Date "2022.06.10"]
[Round "8.3"]
[White "Musiolik, David"]
[Black "Pubantz, Jan"]
[Result "1/2-1/2"]
[ECO "B12"]
[WhiteElo "2220"]
[BlackElo "2265"]
[Annotator "TA"]
[PlyCount "105"]
[EventDate "2022.06.05"]
[EventType "swiss"]
[EventRounds "9"]
[EventCountry "GER"]
[SourceTitle "playchess.com"]
[Source "ChessBase"]
[SourceQuality "1"]
[TimeControl "40/4500+30:900+30"]

{[%evp 14,105,24,0,0,0,8,-20,-22,-77,-85,-80,-79,-83,-88,-100,-110,-104,-89,-99,-91,-95,-78,-89,-80,-68,-62,-66,0,0,0,0,0,-52,0,0,15,13,69,68,79,75,89,0,8,7,8,0,0,0,0,0,0,-5,-6,-6,-6,-6,0,-2,0,0,0,0,0,-2,0,-2,-2,-8,0,-8,0,0,0,0,0,0,0,0,0,0,0,0,0,0,8,8,8,8,8,8,8,8]} 1. e4 {[%emt 0:00:00]} c6 {[%emt 0:00:00][%cal Bc7c6,Bc6c5][%mdl 32]} 2. d4 {[%emt 0:00:00]} d5 {[%emt 0:00:00]} 3. e5 {[%emt 0:00:00]} Bf5 {[%emt 0:00:00]} 4. Nf3 {[%emt 0:00:00]} e6 {[%emt 0:00:00]} 5. Be2 {[%emt 0:00:00]} c5 {[%emt 0:00:00]} 6. O-O {[%emt 0:00:00]} Nc6 {[%emt 0:00:00]} 7. c3 {[%emt 0:00:00]} Bg4 {[%emt 0:05:05]} 8. Be3 {[%emt 0:00:00]} Bxf3 {[%emt 0:08:21] B12: Caro-Kann: Advance Variation.} 9. Bxf3 {[%emt 0:00:00]} Nge7 {[%emt 0:00:28]} 10. dxc5 {[%emt 0:12:26]} Nf5 {[%emt 0:18:02] [#] Pair of Knights!} 11. Bd4 $146 {[%emt 0:11:13]} (11. c4 $11 Nxe3 12. fxe3 Nxe5 13. cxd5 Bxc5 14. dxe6 Qxd1 15. exf7+ Kxf7 16. Bxd1+ Kg6 17. Nc3) ({Predecessor:} 11. b4 Nxe3 12. fxe3 Qg5 13. Qe1 O-O-O 14. c4 Qxe5 15. cxd5 exd5 16. Na3 f5 17. Nc2 {1-0 (31) Reinaldo Castineira,R (2503)-Kubecka,D (2304) Barcelona 2009}) 11... Nfxd4 $17 {[%emt 0:02:13]} 12. cxd4 {[%emt 0:01:47]} Qh4 {[%emt 0:00:58]} 13. Nc3 {[%emt 0:05:06] aiming for Nb5.} Qxd4 {[%emt 0:01:51]} 14. Nb5 {[%emt 0:01:09] [#]} Qxd1 {[%emt 0:03:53]} (14... Qxe5 15. Re1 Qb8 16. Qxd5 $16) 15. Rfxd1 {[%emt 0:01:19]} Kd7 {[%emt 0:08:31] Inhibits Nc7.} 16. Bxd5 {[%emt 0:12:09]} exd5 {[%emt 0:03:05]} 17. Rxd5+ {[%emt 0:00:06]} Ke7 {[%emt 0:00:13]} 18. Rad1 {[%emt 0:02:36]} Rd8 {[%emt 0:05:28] Inhibits Rd7+.} 19. Rxd8 {[%emt 0:07:21]} Nxd8 {[%emt 0:00:01]} 20. Nxa7 {[%emt 0:02:09]} Ke8 {[%emt 0:09:44]} (20... Nc6 $15 21. Nxc6+ bxc6) 21. b4 $11 {[%emt 0:02:51]} g5 {[%emt 0:05:03]} 22. Nb5 {[%emt 0:12:17]} Nc6 {[%emt 0:04:51][%csl LRb4,LRe5]} 23. Nc7+ {[%emt 0:05:05]} Ke7 {[%emt 0:00:14]} 24. Rd6 $1 {[%emt 0:00:57]} ({Don't play} 24. Nd5+ Ke6 25. Nc7+ Kxe5 $17) 24... Bg7 {[%emt 0:03:38]} 25. Nd5+ {[%emt 0:02:03]} Kf8 {[%emt 0:00:57]} ({Black should play} 25... Ke8 $11) 26. Rd7 $14 {[%emt 0:03:57] [#] Hoping for b5. White is more active.} Bxe5 {[%emt 0:00:10]} 27. Rxb7 {[%emt 0:00:45]} Kg7 {[%emt 0:00:08]} 28. a4 {[%emt 0:01:04]} (28. b5 $16 Nd4 29. c6) 28... Rd8 {[%emt 0:01:58] The position is equal.} 29. Ne3 {[%emt 0:00:05]} Ra8 $1 {[%emt 0:03:33]} 30. a5 {[%emt 0:01:09]} Bc3 {[%emt 0:00:44]} 31. Nd5 {[%emt 0:00:25]} Bxb4 {[%emt 0:01:05]} 32. Nxb4 {[%emt 0:00:25]} Rxa5 $11 {[%emt 0:00:11][%cal Ra5a1][%mdl 4096] Endgame KRN-KRN} 33. Nc2 {[%emt 0:00:07] Against Ra1+} Rxc5 {[%emt 0:00:30]} (33... Nd4 $5 34. Ne1 Rxc5 $11) 34. Ne1 {[%emt 0:01:14]} Rc1 {[%emt 0:00:15][%cal Rc1e1]} 35. Kf1 {[%emt 0:00:05]} Ne5 {[%emt 0:00:56]} 36. Ke2 {[%emt 0:00:31]} Ra1 {[%emt 0:00:11]} 37. h3 {[%emt 0:02:27]} Ra2+ {[%emt 0:00:39]} 38. Ke3 {[%emt 0:00:48]} Nc4+ {[%emt 0:00:03]} 39. Kd3 {[%emt 0:00:51]} Nd6 {[%emt 0:00:36]} 40. Rb6 {[%emt 0:00:22]} Nf5 {[%emt 0:00:26]} 41. Nc2 {[%emt 0:00:00]} Nh4 {[%emt 0:00:00]} 42. Rb5 {[%emt 0:00:00]} h6 {[%emt 0:00:00]} 43. g3 {[%emt 0:00:00]} Nf3 {[%emt 0:00:00][%cal Oa2c2] Strongly threatening ...Rxc2!} 44. Rc5 {[%emt 0:00:00]} Ng1 {[%emt 0:00:00]} 45. h4 {[%emt 0:00:00]} gxh4 {[%emt 0:00:00]} 46. gxh4 {[%emt 0:00:00]} Nh3 {[%emt 0:00:00]} 47. Rf5 {[%emt 0:00:00]} Ra4 {[%emt 0:03:11]} 48. Nd4 {[%emt 0:00:36]} Kg6 {[%emt 0:09:26][%cal Oa4d4]} 49. Rf3 {[%emt 0:03:40]} Ra3+ {[%emt 0:04:16]} 50. Ke4 {[%emt 0:00:14]} Rxf3 {[%emt 0:00:46]} 51. Kxf3 {[%emt 0:00:10] And now Kg3 would win.} Kh5 {[%emt 0:00:23]} 52. Nf5 {[%emt 0:00:51]} Nxf2 {[%emt 0:01:07]} 53. Kxf2 {[%emt 0:00:06] Weighted Error Value: White=0.09 (flawless) /Black=0.05 (flawless)} 1/2-1/2

[Event "GER-ch Youth-U18 2022"]
[Site "Willingen"]
[Date "2022.06.10"]
[Round "8.4"]
[White "von Mettenheim, Johannes"]
[Black "Colbow, Collin"]
[Result "0-1"]
[ECO "A40"]
[WhiteElo "2176"]
[BlackElo "2360"]
[Annotator "TA"]
[PlyCount "68"]
[EventDate "2022.06.05"]
[EventType "swiss"]
[EventRounds "9"]
[EventCountry "GER"]
[SourceTitle "playchess.com"]
[Source "ChessBase"]
[SourceQuality "1"]
[TimeControl "40/4500+30:900+30"]

{[%evp 10,68,0,0,0,-26,-16,0,0,0,0,-20,-25,-47,-50,-55,-47,-61,-52,-184,-177,-184,-127,-136,-134,-118,-126,-135,-84,-197,-203,-219,-225,-540,-541,-606,-600,-564,-566,-553,-505,-512,-484,-504,-503,-629,-544,-675,-661,-865,-865,-848,-838,-1139,-1124,-1039,-1041,-29979,-29980,-29976,-245]} 1. d4 {[%emt 0:00:00]} Nf6 {[%emt 0:00:00]} 2. c4 {[%emt 0:00:00]} e6 {[%emt 0:00:00]} 3. g3 {[%emt 0:00:00]} d5 {[%emt 0:00:00][%cal Bd7d5,Bd5c4,Bc4c3][%mdl 32]} 4. Nf3 {[%emt 0:00:00]} Bb4+ {[%emt 0:00:00]} 5. Nbd2 {[%emt 0:00:00]} dxc4 {[%emt 0:00:00]} 6. Bg2 {[%emt 0:00:00]} b5 {[%emt 0:00:00] Prevents Qa4. E04: Open Catalan: 5 Nf3.} 7. O-O {[%emt 0:00:00][%cal Od2c4]} O-O {[%emt 0:00:00]} 8. b3 {[%emt 0:00:00]} c3 {[%emt 0:00:00] The position is equal.} 9. Nb1 {[%emt 0:00:00]} Bb7 {[%emt 0:00:00]} 10. a3 {[%emt 0:00:00] [#]} Be4 $1 {[%emt 0:00:00] Threatens to win with ...c2.} 11. Ne1 {[%emt 0:00:00] Inhibits c2.} ({But not} 11. axb4 $2 c2 12. Qe1 cxb1=B $19) (11. Qe1 c2) 11... Bxg2 {[%emt 0:00:47]} 12. Kxg2 {[%emt 0:00:00] [#]} Ba5 $146 {[%emt 0:02:50]} ({Predecessor:} 12... c5 13. axb4 cxb4 14. Nc2 a5 15. Qd3 Nc6 16. Qxb5 Nxd4 17. Nxd4 Qxd4 18. Bf4 Nd5 {0-1 (32) Huber,B (2186)-Baum,J (2355) Bassano del Grappa 2022}) 13. Qd3 {[%emt 0:05:17]} Qd5+ {[%emt 0:10:05]} 14. f3 {[%emt 0:13:12]} (14. Nf3 $15) 14... Qxb3 $19 {[%emt 0:03:58] ...Nc6 is the strong threat.} 15. a4 {[%emt 0:00:14]} bxa4 {[%emt 0:11:41]} ({Black should play} 15... b4 $19 {Hoping for ...Qd5.} 16. Nd2 Qd5) 16. Ra3 $17 {[%emt 0:04:01]} Qb7 {[%emt 0:07:37][%cal Oc7c5]} 17. Rxa4 {[%emt 0:03:08]} Nc6 {[%emt 0:03:47]} 18. Nxc3 {[%emt 0:00:49]} Rfd8 {[%emt 0:19:18]} ({Better is} 18... Bxc3 19. Qxc3 Nd5) 19. Bg5 {[%emt 0:13:11] [#]} (19. Nc2 $17) 19... Qb3 $1 $19 {[%emt 0:03:50]} 20. Bxf6 {[%emt 0:10:11]} gxf6 {[%emt 0:00:09]} ({Weaker is} 20... Bxc3 21. Rc4 Nb4 22. Rxc3 $15) 21. Qa6 $2 {[%emt 0:00:11]} (21. Nc2 {was the crucial defense.} Qxc3 22. Qxc3 Bxc3 23. Rc4) 21... Qxc3 {[%emt 0:01:18]} 22. Nd3 {[%emt 0:04:17]} Qc2 {[%emt 0:05:42]} 23. Raa1 {[%emt 0:03:45]} Rxd4 {[%emt 0:05:05]} 24. Rf2 {[%emt 0:05:19]} Qc4 {[%emt 0:01:17]} 25. Rxa5 {[%emt 0:00:29]} Nxa5 {[%emt 0:00:06]} 26. Qxa5 {[%emt 0:00:05]} e5 {[%emt 0:00:51] Against Nf4} 27. Qd2 {[%emt 0:02:12]} Kg7 {[%emt 0:00:36] And now ...a5 would win.} 28. Qe3 {[%emt 0:00:04]} Qd5 {[%emt 0:03:13]} 29. g4 {[%emt 0:00:13]} Rxg4+ {[%emt 0:00:39]} 30. Kf1 {[%emt 0:00:06]} Rg6 {[%emt 0:00:29]} 31. h4 {[%emt 0:00:27]} Rb8 {[%emt 0:03:10] ( -> ...Rb1+)} 32. Rh2 {[%emt 0:00:37]} Rb1+ {[%emt 0:00:25]} 33. Ne1 {[%emt 0:00:06]} Qa5 {[%emt 0:00:51][%csl Gb1][%cal Ra5e1]} 34. Qf2 {[%emt 0:00:05] [#]} Rxe1+ $1 {[%emt 0:00:08] Weighted Error Value: White=0.56/Black=0.11 (very precise)} 0-1

[Event "GER-ch Youth-U18 2022"]
[Site "Willingen"]
[Date "2022.06.10"]
[Round "8.5"]
[White "Dobrikov, Marco"]
[Black "Geltz, Noah"]
[Result "1-0"]
[ECO "B68"]
[WhiteElo "2234"]
[BlackElo "2156"]
[Annotator "TA"]
[PlyCount "63"]
[EventDate "2022.06.05"]
[EventType "swiss"]
[EventRounds "9"]
[EventCountry "GER"]
[SourceTitle "playchess.com"]
[Source "ChessBase"]
[SourceQuality "1"]
[TimeControl "40/4500+30:900+30"]

{[%evp 25,63,33,43,0,9,0,10,-83,-38,-118,-124,-123,-135,-134,-149,-146,-147,-191,-157,-208,-213,-559,-189,-160,-79,-161,527,516,1443,1283,1418,1368,2311,2187,29991,29990,29994,29991,29993,29994]} 1. e4 {[%emt 0:00:00]} c5 {[%emt 0:00:00]} 2. Nf3 {[%emt 0:00:00]} d6 {[%emt 0:00:00]} 3. d4 {[%emt 0:00:00]} cxd4 {[%emt 0:00:00]} 4. Nxd4 {[%emt 0:00:00]} Nf6 {[%emt 0:00:00]} 5. Nc3 {[%emt 0:00:00]} Nc6 {[%emt 0:00:00]} 6. Bg5 {[%emt 0:00:00]} e6 {[%emt 0:00:00]} 7. Qd2 {[%emt 0:00:00]} a6 {[%emt 0:00:00]} 8. O-O-O {[%emt 0:00:00]} Bd7 {[%emt 0:00:00]} 9. f4 {[%emt 0:00:00]} Be7 {[%emt 0:00:00]} 10. Nf3 {[%emt 0:00:00]} b5 {[%emt 0:00:00]} 11. e5 {[%emt 0:00:00]} b4 {[%emt 0:00:00]} 12. exf6 {[%emt 0:00:00]} bxc3 {[%emt 0:00:00]} 13. Qxc3 {[%emt 0:00:00]} gxf6 {[%emt 0:00:00]} 14. Bh6 {[%emt 0:00:00][%cal Of4f5] [#] B68: Sicilian: Richter-Rauzer: 7...a6 8 0-0-0 Bd7 9 f4 Be7 .} a5 $146 {[%emt 0:00:00]} ({Predecessor:} 14... d5 15. a3 Rg8 16. f5 Qb6 17. Be3 Qb7 18. fxe6 fxe6 19. Bc5 Bxc5 20. Qxc5 Rc8 21. Qe3 Ne7 22. Bd3 Qb3 23. Bg6+ {1-0 (23) Albornoz Cabrera,C (2581)-Rakesh,K (2355) New Delhi 2019}) 15. Kb1 {[%emt 0:05:02]} ({Much weaker is} 15. Bb5 Nb4 16. Bxd7+ Qxd7 $15) 15... a4 {[%emt 0:09:24][%cal Oa4a3]} 16. Bb5 {[%emt 0:21:37] [#]} (16. g4 $11) 16... Qb6 $1 $17 {[%emt 0:10:06]} 17. Bg7 {[%emt 0:03:27]} (17. Nd4 $15 Nxd4 18. Bxd7+ Kxd7 19. Rxd4) 17... Rg8 {[%emt 0:00:21]} 18. Bxc6 {[%emt 0:00:04]} Qxc6 {[%emt 0:00:45]} 19. Bxf6 {[%emt 0:00:15]} Rxg2 {[%emt 0:00:28] Threatens to win with ...Bxf6.} 20. Bd4 {[%emt 0:21:01]} Rc8 {[%emt 0:04:48] aiming for ...Qb7.} 21. Rhg1 {[%emt 0:06:31][%cal Bh1g1,Bg1g2,Bg2g8][%mdl 32] [#]} Qd5 $1 {[%emt 0:07:31]} 22. Qe3 {[%emt 0:03:45]} Rcxc2 {[%emt 0:02:28]} 23. Nd2 $2 {[%emt 0:02:03] [#]} (23. Bc3 {was the crucial defense.} Qf5 24. Ka1) 23... Qf5 $1 {[%emt 0:18:10]} 24. Ka1 $19 {[%emt 0:00:36]} Qg4 {[%emt 0:07:59]} (24... Rxh2 $2 25. Rg8+ Bf8 26. Ne4 Qxe4 27. Qxe4 $18) ({Black should play} 24... Bc6 {Hoping for ...Bd8.} 25. a3 Bf6 26. Rxg2 Bxg2) 25. Kb1 {[%emt 0:00:47]} (25. a3 $17) 25... Qg6 $4 {[%emt 0:01:56][%mdl 8192]} (25... Rc8 $19 {[%cal Oe6e5] avoids the disaster. And now ...e5! would win.} 26. Ka1 Qe2 27. Qxe2 Rxe2 28. Rg8+ Bf8) 26. Rxg2 $18 {[%emt 0:00:23]} Qf5 {[%emt 0:01:37]} (26... Qxg2 $142 27. Kxc2 e5) 27. Rg8+ {[%emt 0:01:52]} Bf8 {[%emt 0:00:04]} 28. Ne4 {[%emt 0:00:57] White wants to mate with Nxd6+.} Rc6 {[%emt 0:02:43]} 29. Ka1 {[%emt 0:00:08][%cal Od4e5] White threatens Be5! and mate.} e5 {[%emt 0:01:07]} 30. fxe5 {[%emt 0:00:29] White mates.} dxe5 {[%emt 0:00:47]} 31. Bxe5 {[%emt 0:01:55]} Ke7 {[%emt 0:01:42]} 32. Bd6+ {[%emt 0:01:18] White used his chance.  Weighted Error Value: White=0.53/Black=1.05} 1-0